bitfinex-derivatives/quotes_ETHF0:USTF0_20250926
["timestamp","ask_amount","ask_price","bid_price","bid_amount"]
[1758914194707,0.67953289,4042.0,4041.9,2.95455843]
[1758914195006,1.00783289,4042.0,4041.9,2.95455843]
[1758914196710,0.67953289,4042.0,4041.9,2.60201444]
[1758914197205,1.00783289,4042.0,4041.9,2.60201444]
[1758914198000,0.67953289,4042.0,4041.9,2.60201444]
[1758914198705,0.67953289,4042.0,4041.6,1.11255]
[1758914198706,0.7523,4041.5,4041.4,0.97184]
[1758914199008,3.6318,4041.5,4041.4,1.18484]
[1758914199313,3.2078,4041.5,4041.4,1.18484]
[1758914200107,0.00253289,4042.0,4041.8,0.44499]
[1758914200305,0.2158,4041.9,4041.8,2.60202444]
[1758914201211,0.7523,4041.9,4041.8,2.60202444]
[1758914201412,0.424,4041.9,4041.8,2.60202444]
[1758914203914,0.25553289,4042.0,4041.8,2.15703444]
[1758914204110,0.47003289,4042.0,4041.9,1.20918]
[1758914204415,0.00253289,4042.0,4041.9,1.20918]
[1758914204708,0.21703289,4042.0,4041.9,1.20918]
[1758914205814,0.77053289,4042.0,4041.9,2.62641444]
[1758914206518,0.43953289,4042.0,4041.9,2.62641444]
[1758914207512,0.00253289,4042.0,4041.9,2.62641444]
[1758914207717,0.21703289,4042.0,4041.9,2.62641444]
[1758914208215,0.00253289,4042.0,4041.9,2.62641444]
[1758914208417,0.21703289,4042.0,4041.9,2.62641444]
[1758914208608,0.00253289,4042.0,4041.9,2.62641444]
[1758914209418,0.21703289,4042.0,4041.9,2.62641444]
[1758914209820,1.53456733,4042.0,4041.5,0.2152]
[1758914210015,0.437,4041.6,4041.0,0.1258]
[1758914210217,3.6448,4041.2,4041.1,0.2152]
[1758914210411,3.6448,4041.2,4041.1,0.4262]
[1758914210615,3.8978,4041.2,4041.1,0.87127]
[1758914210818,3.8978,4041.2,4041.0,0.44508]
[1758914211010,3.8978,4041.2,4041.1,0.44507]
[1758914211318,3.8978,4041.2,4040.7,1.75523444]
[1758914211508,3.8978,4041.2,4040.8,0.4451]
[1758914211509,0.768,4040.9,4040.8,0.4451]
[1758914211704,1.021,4040.9,4040.8,0.4451]
[1758914213717,1.021,4040.9,4040.8,0.6603]
[1758914214313,1.021,4040.9,4040.8,1.2093]
[1758914215116,1.021,4040.9,4040.8,0.4451]
[1758914215621,1.021,4040.9,4040.8,0.6603]
[1758914216514,0.768,4040.9,4040.8,0.6603]
[1758914216714,1.021,4040.9,4040.8,0.6603]
[1758914217319,1.021,4040.9,4040.8,0.4451]
[1758914217519,3.2078,4041.2,4041.1,0.44507]
[1758914217718,4.4133918,4041.2,4041.1,0.44507]
[1758914217915,0.1278,4041.0,4040.7,1.11279]
[1758914218119,0.768,4040.8,4040.7,0.2152]
[1758914219018,0.768,4040.8,4040.7,1.20931]
[1758914221219,0.5455,4041.1,4041.0,0.66028]
[1758914221421,0.5455,4041.1,4041.0,2.75351444]
[1758914221624,3.2078,4041.2,4041.1,1.20927]
[1758914221930,0.253,4041.3,4041.2,1.20926]
[1758914222527,1.021,4041.3,4041.2,1.20926]
[1758914223226,0.253,4041.3,4041.2,1.20926]
[1758914224124,0.5455,4041.6,4041.5,0.44503]
[1758914224330,1.30807258,4041.6,4041.5,1.20923]
[1758914224531,0.7985,4041.6,4041.5,1.20923]
[1758914224830,0.7985,4041.6,4041.5,1.33623]
[1758914225021,3.5388,4042.7,4042.5,0.44491]
[1758914225225,0.5675,4042.9,4042.8,0.44488]
[1758914225739,0.1278,4043.5,4042.8,0.44488]
[1758914225740,3.2078,4043.8,4043.7,0.44478]
[1758914225925,0.5419,4044.0,4043.5,3.4608]
[1758914226223,0.4141,4043.6,4043.5,0.44780915]
[1758914226428,0.4141,4043.6,4043.5,1.86504359]
[1758914226626,0.4141,4043.6,4043.5,0.44780915]
[1758914227225,0.54409678,4044.0,4043.9,0.44476]
[1758914227619,0.86519678,4044.0,4043.9,0.44476]
[1758914228826,0.65929678,4044.0,4043.9,0.44476]
[1758914229031,0.45109678,4044.0,4043.9,0.44476]
[1758914229725,0.00219678,4044.0,4043.9,5.44476]
[1758914230426,0.00219678,4044.0,4043.9,5.69876]
[1758914230631,0.00219678,4044.0,4043.5,4.32280915]
[1758914230632,0.3211,4043.9,4043.5,3.21079915]
[1758914230834,0.3211,4043.8,4043.7,0.44478]
[1758914231227,0.13629678,4044.0,4043.9,0.44476]
[1758914231826,0.45739678,4044.0,4043.9,0.44476]
[1758914233330,0.00219678,4044.0,4043.9,10.47772783]
[1758914233634,0.44199678,4044.0,4043.9,10.47772783]
[1758914233834,0.65169678,4044.0,4043.9,10.47772783]
[1758914234134,0.44199678,4044.0,4043.9,10.47772783]
[1758914236828,0.12479678,4044.0,4043.9,10.47772783]
[1758914240137,0.3375,4045.0,4044.9,0.4375]
[1758914240438,3.2078,4045.1,4045.0,0.88214]
[1758914240637,3.632,4045.1,4045.0,0.88214]
[1758914240942,0.4242,4045.1,4045.0,0.88214]
[1758914241135,0.42633757,4045.1,4045.0,0.88214]
[1758914242242,0.74353757,4045.1,4045.0,0.88214]
[1758914242542,0.52903757,4045.1,4045.0,1.21764]
[1758914242839,0.74353757,4045.1,4045.0,1.21764]
[1758914243038,0.74353757,4045.1,4045.0,0.88214]
[1758914243943,0.74353757,4045.1,4045.0,1.21764]
[1758914244343,0.00213757,4045.1,4045.0,1.21764]
[1758914244937,0.52903757,4045.1,4045.0,1.21764]
[1758914246747,0.74353757,4045.1,4045.0,1.21764]
[1758914248546,0.00213757,4045.1,4045.0,2.63256878]
[1758914249051,0.00213757,4045.1,4045.0,2.73826878]
[1758914251648,0.9954,4045.8,4045.7,0.66996]
[1758914251947,0.9954,4045.8,4045.7,2.08488878]
[1758914252250,0.9954,4045.8,4045.7,0.66996]
[1758914252450,0.9954,4045.8,4045.7,0.44456]
[1758914252646,0.99727643,4045.8,4045.7,0.44456]
[1758914252952,0.74327643,4045.8,4045.7,0.44456]
[1758914253943,0.74327643,4045.8,4045.7,0.66996]
[1758914254454,0.74327643,4045.8,4045.7,1.21756]
[1758914254645,0.74327643,4045.8,4045.7,2.63248878]
[1758914254839,0.74327643,4045.8,4045.7,2.29698878]
[1758914255245,1.25007344,4045.8,4045.7,2.29698878]
[1758914255748,1.25007344,4045.8,4045.7,2.63248878]
[1758914255940,0.44468,4044.7,4044.5,1.33026798]
[1758914256142,0.7414,4043.7,4043.6,0.44479]
[1758914256449,0.7414,4043.7,4043.6,2.63271878]
[1758914256655,0.7819,4044.0,4043.9,1.21776]
[1758914256854,1.28854377,4044.0,4043.9,1.21776]
[1758914257046,1.50304377,4044.0,4043.9,0.773]
[1758914257349,1.62564377,4044.0,4043.9,0.2254]
[1758914257748,0.3172,4043.9,4043.7,0.44478]
[1758914257951,0.4242,4043.7,4043.6,2.76983765]
[1758914258150,1.25645014,4043.7,4043.6,2.76983765]
[1758914258352,1.25645014,4043.7,4043.6,0.44479]
[1758914259357,1.25645014,4043.7,4043.6,0.67019]
[1758914259559,1.25645014,4043.7,4043.6,0.2254]
[1758914261260,0.7414,4043.7,4043.6,0.2254]
[1758914261659,0.3172,4043.6,4043.5,0.44779915]
[1758914261861,0.7414,4043.6,4043.5,0.67319915]
[1758914262256,0.7414,4043.6,4043.5,0.22839915]
[1758914262456,0.7414,4043.6,4043.5,0.54529915]
[1758914262652,0.7414,4043.6,4043.5,0.75549915]
[1758914263054,1.18619,4043.6,4043.5,0.00299915]
[1758914263461,1.70067724,4043.6,4043.5,0.00299915]
[1758914263661,1.25588724,4043.6,4043.5,0.00299915]
[1758914264065,1.51088724,4043.6,4043.5,0.00299915]
[1758914264265,1.51076614,4043.6,4043.5,0.00299915]
[1758914264572,0.9964,4043.6,4043.5,0.00299915]
[1758914265774,1.44119,4043.6,4043.5,0.00299915]
[1758914266576,0.9964,4043.6,4043.5,0.44780915]
[1758914269172,1.44119,4043.6,4043.5,0.00299915]
[1758914269372,0.9016,4043.0,4042.8,0.44488]
[1758914269572,0.7671,4042.9,4042.8,0.44488]
[1758914269876,0.7671,4042.9,4042.8,0.65858]
[1758914270072,0.7671,4042.9,4042.8,0.5306]
[1758914270368,0.76902759,4042.9,4042.8,0.44735468]
[1758914271775,41.56902759,4042.9,4042.8,0.44735468]
[1758914276776,41.82302759,4042.9,4042.8,0.44735468]
[1758914277075,0.00192759,4042.9,4042.8,6.10900233]
[1758914277279,0.1226,4044.0,4043.5,0.6897]
[1758914277280,0.5502,4043.6,4043.5,0.6897]
[1758914277480,0.5502,4043.6,4043.5,4.34231]
[1758914278278,0.33438809,4043.6,4043.5,4.34231]
[1758914278879,0.76898809,4043.6,4043.5,3.6317]
[1758914279078,0.76898809,4043.6,4043.5,0.2137]
[1758914279776,0.76898809,4043.6,4043.5,0.6585]
[1758914280273,0.76898809,4043.6,4043.5,0.8687]
[1758914280678,0.76898809,4043.6,4043.5,4.0765]
[1758914281472,0.76898809,4043.6,4043.5,4.3423]
[1758914281670,0.33438809,4043.6,4043.5,4.3423]
[1758914281874,0.00188809,4043.6,4043.5,11.10644765]
[1758914282074,0.00188809,4043.6,4043.5,11.48704765]
[1758914283576,0.00188809,4043.6,4043.5,9.7229]
[1758914283772,0.00188809,4043.6,4043.5,11.48704765]
[1758914284283,0.33438809,4043.6,4043.5,6.36044765]
[1758914284581,0.55208809,4043.6,4043.5,6.10644765]
[1758914284780,0.55208809,4043.6,4043.5,6.36044765]
[1758914284982,0.55208809,4043.6,4043.5,6.10644765]
[1758914285182,0.55208809,4043.6,4043.5,6.36044765]
[1758914285380,0.00188809,4043.6,4043.5,6.36044765]
[1758914285582,0.00188809,4043.6,4043.5,11.36044765]
[1758914287075,0.00188809,4043.6,4043.5,11.10644765]
[1758914287284,0.00188809,4043.6,4043.5,11.36044765]
[1758914289679,0.1226,4044.5,4044.4,1.1509]
[1758914289883,0.3172,4044.5,4044.4,1.1509]
[1758914290086,0.6664,4044.5,4044.4,0.8857]
[1758914290292,0.8901,4044.5,4044.4,0.8857]
[1758914290782,0.89321662,4044.5,4044.4,0.8857]
[1758914291782,0.89321662,4044.5,4044.4,0.6675]
[1758914292485,0.89321662,4044.5,4044.4,0.4447]
[1758914292693,0.89321662,4044.5,4044.4,0.6658]
[1758914294284,0.89321662,4044.5,4044.4,0.8813]
[1758914294793,0.89321662,4044.5,4044.4,0.6658]
[1758914295285,0.4257,4045.5,4045.4,0.98039]
[1758914295489,0.4257,4045.5,4045.4,2.96003765]
[1758914295679,0.2187,4045.5,4045.4,2.96003765]
[1758914296193,0.6787,4046.1,4046.0,0.75923]
[1758914296390,0.51963647,4046.1,4046.0,1.32468068]
[1758914296593,0.00296049,4046.1,4046.0,1.32468068]
[1758914297280,0.00296049,4046.1,4046.0,6.32468068]
[1758914297486,3.4265,4046.8,4046.7,2.95989765]
[1758914297688,0.2187,4046.8,4046.7,2.95989765]
[1758914297887,0.4257,4046.8,4046.7,2.95989765]
[1758914298089,0.7645,4046.8,4046.7,1.19575]
[1758914298391,0.76738273,4046.8,4046.7,1.19575]
[1758914299394,0.42858273,4046.8,4046.7,1.19575]
[1758914301090,0.42858273,4046.8,4046.1,1.11129]
[1758914301091,0.7645,4046.3,4046.2,0.44451]
[1758914301596,0.7645,4046.3,4046.2,1.19581]
[1758914301784,0.4257,4046.3,4046.2,1.19581]
[1758914303093,0.2187,4046.3,4046.2,1.19581]
[1758914306197,0.4257,4046.6,4046.5,1.32158]
[1758914306497,0.2187,4046.6,4046.5,4.52938]
[1758914308201,0.7645,4046.6,4046.5,1.19578]
[1758914308388,0.7645,4046.6,4046.5,0.98028]
[1758914308591,0.7645,4046.6,4046.5,0.92476]
[1758914309391,0.7645,4046.6,4046.5,1.14026]
[1758914309592,0.7645,4046.6,4046.5,1.26606]
[1758914310799,0.7645,4046.6,4046.5,1.14026]
[1758914311500,0.7645,4046.1,4046.0,0.44758068]
[1758914313386,0.7645,4046.1,4046.0,0.98338068]
[1758914314596,0.2187,4046.1,4046.0,1.32468068]
[1758914314799,0.76738273,4046.8,4046.7,1.19575]
[1758914315012,1.53533755,4046.8,4046.7,1.19575]
[1758914315300,0.7645,4046.7,4046.6,0.44446]
[1758914315496,1.72390482,4046.7,4046.3,0.3147]
[1758914315807,0.7645,4046.4,4046.3,0.4445]
[1758914316010,1.20899,4046.4,4046.3,0.4445]
[1758914316502,6.20899,4046.4,4046.3,0.4445]
[1758914316893,0.4257,4046.2,4046.1,0.66561]
[1758914317205,0.7645,4046.2,4046.1,0.98031]
[1758914318208,1.28043447,4046.2,4046.1,0.98031]
[1758914318409,1.28043447,4046.2,4046.1,1.19581]
[1758914320203,1.20902,4046.1,4046.0,0.44757068]
[1758914320407,1.72495447,4046.1,4046.0,0.44757068]
[1758914320608,1.28043447,4046.1,4046.0,0.44757068]
[1758914320805,1.28043447,4046.1,4046.0,1.19887068]
[1758914324213,1.53343447,4046.1,4046.0,1.19887068]
[1758914325006,1.53343447,4046.1,4046.0,1.33217068]
[1758914326604,0.76893447,4046.1,4046.0,1.33217068]
[1758914328409,0.21458273,4046.8,4046.7,0.4304]
[1758914328610,0.98557916,4046.8,4046.7,1.21195]
[1758914328913,1.52467916,4046.8,4046.7,0.65395]
[1758914329114,1.52467916,4046.8,4046.7,0.87485]
[1758914329914,0.5553,4046.5,4046.4,0.44449]
[1758914330107,1.07329643,4046.5,4046.4,0.65399]
[1758914330312,1.07329643,4046.5,4046.4,0.87489]
[1758914330507,0.4627,4045.0,4044.9,0.4304]
[1758914330810,0.8844,4045.0,4044.9,0.87505]
[1758914331015,1.19239643,4045.0,4044.9,1.19385]
[1758914331711,1.19239643,4045.0,4044.9,0.87739398]
[1758914332020,1.40239643,4045.0,4044.9,0.87739398]
[1758914332707,1.40239643,4045.0,4044.9,0.43274398]
[1758914334612,1.40239643,4045.0,4044.9,0.21184398]
[1758914334917,3.07004407,4045.0,4044.9,0.00234398]
[1758914336318,1.65539643,4045.0,4044.9,0.00234398]
[1758914337320,2.10003643,4045.0,4044.9,0.00234398]
[1758914338711,2.10003643,4045.0,4044.9,0.44699398]
[1758914338923,2.10003643,4045.0,4044.9,0.00234398]
[1758914339215,0.86636,4044.8,4044.7,0.65417]
[1758914339517,1.19546,4044.8,4044.7,0.65417]
[1758914339718,0.7508,4044.8,4044.7,0.65417]
[1758914340219,0.7508,4044.8,4044.7,0.65627255]
[1758914340814,0.7938,4045.3,4045.2,0.87502]
[1758914341012,0.7938,4045.3,4045.2,2.28966764]
[1758914341215,0.7938,4045.3,4045.2,2.60846764]
[1758914341516,3.2078,4045.5,4045.4,1.1938]
[1758914341715,0.5408,4045.8,4045.7,0.87496]
[1758914341913,1.0642191,4045.8,4045.7,0.87496]
[1758914342112,1.0642191,4045.8,4045.7,1.19376]
[1758914342412,0.253,4045.9,4045.8,0.87495]
[1758914342719,0.77645277,4045.9,4045.8,1.19375]
[1758914342912,0.77645277,4045.9,4045.6,4.62244764]
[1758914342913,3.3414,4046.5,4046.4,0.44448]
[1758914343119,3.3414,4046.5,4046.4,2.60832764]
[1758914343120,4.40566006,4046.5,4046.4,2.60832764]
[1758914343718,1.06426006,4046.5,4046.4,2.60832764]
[1758914343915,0.85256006,4046.5,4046.4,2.60832764]
[1758914344218,0.3291,4046.5,4046.4,2.60832764]
[1758914344819,0.21458273,4046.8,4046.7,0.44445]
[1758914345116,0.21458273,4046.8,4046.7,2.60829764]
[1758914345320,0.73805408,4046.8,4046.7,2.60829764]
[1758914345531,0.00288273,4046.8,4046.7,2.60829764]
[1758914347823,0.34028273,4046.8,4046.7,2.60829764]
[1758914348022,0.55338273,4046.8,4046.7,2.86129764]
[1758914348420,0.76968273,4046.8,4046.6,3.2078]
[1758914348729,0.5505,4046.2,4046.1,3.2078]
[1758914348929,0.5505,4046.2,4046.1,3.4608]
[1758914349122,0.5505,4046.2,4046.1,3.65232]
[1758914349421,0.5505,4046.2,4046.1,3.90532]
[1758914349928,0.5505,4046.2,4046.1,5.31996764]
[1758914351419,0.4294,4046.2,4046.1,0.44452]
[1758914351825,0.5633,4045.5,4045.1,3.2078]
[1758914352028,0.7668,4045.4,4045.3,0.4446]
[1758914352219,0.7574,4045.2,4045.1,3.2078]
[1758914352531,0.7574,4045.2,4044.9,0.44464]
[1758914352532,0.5663,4045.0,4044.9,0.69764]
[1758914352725,0.5663,4045.0,4044.7,0.44676255]
[1758914353029,0.7574,4044.8,4044.7,0.44676255]
[1758914359432,0.7574,4044.8,4044.7,0.44677255]
[1758914360226,0.7574,4044.8,4044.7,0.00210255]
[1758914360431,0.7574,4044.8,4044.7,0.44677255]
[1758914362727,1.20206,4044.8,4044.7,0.00210255]
[1758914363233,1.20206,4044.8,4044.7,0.44677255]
[1758914364229,1.20206,4044.8,4044.5,0.253]
[1758914364539,1.20207,4044.7,4044.6,0.44468]
[1758914364722,0.7574,4044.3,4044.2,0.089]
[1758914364926,1.20212,4044.3,4044.2,0.089]
[1758914365135,1.45512,4044.3,4044.2,0.09209563]
[1758914365337,1.20213,4044.2,4044.1,3.2078]
[1758914366236,1.20213,4044.2,4044.1,3.65559809]
[1758914367528,1.20213,4044.2,4044.1,0.44779809]
[1758914368137,0.7574,4044.2,4044.1,0.44779809]
[1758914368528,1.20213,4044.2,4044.1,0.44779809]
[1758914369230,1.20213,4044.2,4044.1,0.00305809]
[1758914369628,1.20213,4044.2,4044.1,0.44779809]
[1758914369824,0.7574,4044.2,4044.1,0.44779809]
[1758914370133,1.20213,4044.2,4044.1,0.44779809]
[1758914371833,1.20213,4044.2,4044.1,0.00305809]
[1758914372429,0.44476,4043.9,4043.8,0.44477]
[1758914372630,0.87876,4043.9,4043.8,0.44477]
[1758914372831,1.20216,4043.9,4043.8,0.44477]
[1758914373027,0.434,4043.6,4043.5,3.2078]
[1758914373329,0.5347,4043.6,4043.5,0.44481]
[1758914373540,0.5347,4043.6,4043.5,0.44793827]
[1758914373541,0.53661,4043.6,4043.5,0.44793827]
[1758914374132,0.75931,4043.6,4043.5,0.44793827]
[1758914377142,1.2041,4043.6,4043.5,0.00312827]
[1758914377433,1.2041,4043.6,4043.5,0.44793827]
[1758914377931,0.75931,4043.6,4043.5,0.44793827]
[1758914379433,0.75931,4043.6,4043.5,3.65573827]
[1758914379634,0.32531,4043.6,4043.5,5.42039667]
[1758914379936,0.00191,4043.6,4043.5,10.42039667]
[1758914380337,0.32531,4043.6,4043.5,10.42039667]
[1758914380538,0.32531,4043.6,4043.5,5.42039667]
[1758914381243,0.32531,4043.6,4043.5,5.67339667]
[1758914381641,0.53661,4043.6,4043.5,5.42039667]
[1758914381944,0.75931,4043.6,4043.5,3.90873827]
[1758914382242,0.32531,4043.6,4043.5,3.90873827]
[1758914382437,0.32531,4043.6,4043.5,3.65573827]
[1758914382644,0.32531,4043.6,4043.5,5.67339667]
[1758914384343,0.54441,4043.6,4043.5,5.67339667]
[1758914384936,0.32531,4043.6,4043.5,5.67339667]
[1758914385537,0.00191,4043.6,4043.5,10.67339667]
[1758914385936,0.53851,4043.6,4043.5,5.67339667]
[1758914386440,0.31941,4043.6,4043.5,5.67339667]
[1758914389244,0.53851,4043.6,4043.5,5.67339667]
[1758914389646,0.76141,4043.6,4043.5,3.65573827]
[1758914389848,0.76141,4043.6,4043.5,3.90873827]
[1758914390340,0.76141,4043.6,4043.5,3.65573827]
[1758914390540,1.2062,4043.6,4043.5,3.65572827]
[1758914390739,1.2062,4043.6,4043.5,2.71092827]
[1758914391142,0.5404,4043.1,4043.0,3.2078]
[1758914391341,0.7595,4043.1,4043.0,3.2078]
[1758914391740,0.7595,4043.1,4043.0,3.20993637]
[1758914391939,0.7595,4043.1,4043.0,3.65479637]
[1758914398147,0.7595,4043.1,4043.0,3.20993637]
[1758914398344,0.7595,4043.1,4042.5,3.2078]
[1758914398345,0.442,4042.6,4042.5,3.2078]
[1758914398644,1.28832804,4042.6,4042.5,3.2078]
[1758914398850,1.73322804,4042.6,4042.5,3.2078]
[1758914399049,1.28832804,4042.6,4042.5,3.2078]
[1758914399240,1.28832804,4042.6,4042.5,3.65581144]
[1758914400152,1.28832804,4042.6,4042.5,0.44801144]
[1758914400352,1.28832804,4042.6,4041.5,3.2078]
[1758914400353,0.2191,4041.6,4041.5,3.2078]
[1758914400556,2.5241584,4041.6,4041.5,3.2078]
[1758914400856,0.8828,4041.0,4040.9,3.65289]
[1758914401450,0.8828,4041.0,4040.9,3.65575784]
[1758914401646,0.8828,4041.0,4040.9,3.21066784]
[1758914401850,0.8828,4041.0,4039.6,1.11306]
[1758914401851,0.8828,4040.5,4040.4,3.2078]
[1758914402054,1.40769788,4040.5,4040.4,3.2078]
[1758914402260,0.8828,4040.5,4040.4,3.2078]
[1758914402749,0.88477507,4040.5,4040.4,3.21053295]
[1758914402956,0.88477507,4040.5,4040.4,0.00273295]
[1758914406354,7.64943347,4040.5,4039.9,3.2078]
[1758914406659,0.8811,4040.0,4039.9,3.2078]
[1758914407457,0.8811,4040.0,4039.9,3.20998077]
[1758914408057,0.4458,4040.0,4039.9,3.20998077]
[1758914408258,0.3176,4040.4,4040.3,0.44515]
[1758914408756,0.5323,4040.4,4040.3,0.44515]
[1758914409057,0.7529,4040.4,4040.3,0.44515]
[1758914409259,0.7529,4040.4,4040.1,0.44518]
[1758914409260,0.3176,4040.3,4040.1,0.44518]
[1758914409449,0.7529,4040.2,4040.1,0.44518]
[1758914410047,0.5635,4040.0,4039.9,3.90817077]
[1758914410252,0.8811,4040.0,4039.9,3.65517077]
[1758914411353,0.8811,4040.0,4039.9,3.20998077]
[1758914411861,0.8811,4040.0,4039.9,3.65518077]
[1758914412762,0.4458,4040.0,4039.9,3.65518077]
[1758914412963,0.12527507,4040.5,4040.4,0.44514]
[1758914413462,0.55617507,4040.5,4040.3,0.44515]
[1758914413660,0.7687,4040.4,4040.1,0.253]
[1758914413862,0.4309,4040.2,4040.1,0.44517]
[1758914414056,0.5568,4040.0,4039.9,3.46298077]
[1758914414363,0.8946,4040.0,4039.9,3.20998077]
[1758914414565,0.8946,4040.0,4039.9,3.65518077]
[1758914414858,0.4637,4040.0,4039.9,3.65518077]
[1758914415064,0.34487507,4040.5,4040.4,0.44514]
[1758914415461,0.68267507,4040.5,4040.4,0.44514]
[1758914415664,0.89397507,4040.5,4040.4,0.44514]
[1758914415961,0.89397507,4040.5,4039.9,4.32297077]
[1758914415962,1.33979,4040.0,4039.9,3.20998077]
[1758914416262,0.8946,4039.5,4039.4,3.2078]
[1758914416563,0.8946,4039.5,4039.1,0.44528]
[1758914416564,0.2196,4039.2,4039.1,0.44528]
[1758914416763,0.5574,4039.2,4039.1,0.44528]
[1758914417266,0.1259,4039.5,4039.4,0.44525]
[1758914417467,0.3378,4039.8,4039.7,0.44522]
[1758914419566,0.3378,4039.8,4039.7,2.4628784]
[1758914420167,0.3378,4039.8,4039.7,0.69822]
[1758914420964,0.7687,4039.8,4039.7,0.44522]
[1758914421168,0.7687,4039.8,4039.7,0.69822]
[1758914422073,0.7687,4039.8,4039.7,0.44522]
[1758914422571,0.8946,4039.5,4039.4,3.65305]
[1758914425063,0.6833,4039.5,4039.4,3.65305]
[1758914425265,0.2196,4040.2,4040.1,0.87788]
[1758914425471,0.80917507,4040.5,4040.1,3.2078]
[1758914425971,0.80917507,4040.5,4040.3,0.44515]
[1758914427377,1.29332533,4040.4,4040.3,0.66375]
[1758914427972,1.29332533,4040.4,4040.3,0.87785]
[1758914428880,1.29332533,4040.4,4040.3,0.44515]
[1758914429178,1.29332533,4040.4,4040.3,0.66375]
[1758914429672,0.52462533,4040.4,4040.3,1.21025]
[1758914430077,0.00197507,4040.5,4040.3,6.46325]
[1758914430265,0.00197507,4040.5,4040.4,0.7651]
[1758914430469,0.53087008,4040.5,4040.4,0.7651]
[1758914430669,0.00197507,4040.5,4040.4,0.7651]
[1758914431476,0.00197507,4040.5,4040.4,1.0181]
[1758914431678,0.53098431,4040.5,4040.4,1.0181]
[1758914432096,0.00197507,4040.5,4040.4,1.46324]
[1758914432380,1.42570397,4040.5,4040.4,0.44514]
[1758914432680,1.42570397,4040.5,4040.2,0.089]
[1758914432881,1.0782289,4040.4,4040.3,0.44515]
[1758914433079,1.2978289,4040.4,4040.3,0.44515]
[1758914433282,1.2978289,4040.4,4040.3,0.66375]
[1758914433484,1.2978289,4040.4,4040.3,0.87785]
[1758914434878,1.2978289,4040.4,4040.3,0.66375]
[1758914435183,1.2978289,4040.4,4040.3,0.87785]
[1758914436177,1.2978289,4040.4,4040.3,0.66375]
[1758914437184,0.7687,4040.4,4040.3,1.21025]
[1758914437374,0.5574,4040.4,4040.3,1.21025]
[1758914437578,0.00197507,4040.5,4040.4,0.87784]
[1758914437777,0.00197507,4040.5,4040.4,1.21024]
[1758914438084,1.42553922,4040.5,4040.4,0.87784]
[1758914438288,1.42553922,4040.5,4040.4,0.66374]
[1758914438875,1.42553922,4040.5,4040.4,0.44514]
[1758914440581,0.44515,4040.3,4040.2,0.089]
[1758914440785,0.7687,4039.7,4039.6,3.65303]
[1758914440978,1.29766415,4039.7,4039.6,3.2078]
[1758914441180,1.29766415,4039.7,4039.1,0.00209638]
[1758914441181,0.7687,4039.2,4039.1,0.00209638]
[1758914441385,4.50546415,4039.2,4039.1,0.00209638]
[1758914442885,0.2094,4038.6,4038.5,0.6774]
[1758914443190,0.5368,4038.6,4038.5,0.6774]
[1758914443482,0.5368,4038.6,4038.5,1.44975]
[1758914443692,0.8776,4039.0,4038.9,0.86971]
[1758914443877,1.4048811,4039.0,4038.9,0.65440632]
[1758914444078,1.4048811,4039.0,4038.9,0.00299632]
[1758914445478,1.4048811,4039.0,4038.2,1.36645]
[1758914445479,0.2094,4038.7,4038.6,0.44534]
[1758914445782,0.7505,4038.7,4038.6,0.65144]
[1758914446179,0.3365,4038.5,4038.4,0.65146]
[1758914446380,0.8776,4038.5,4038.4,0.65146]
[1758914446578,4.0854,4038.5,4038.4,0.00318556]
[1758914446783,4.61213275,4038.5,4038.4,0.00318556]
[1758914447483,4.61213275,4038.5,4037.9,0.02476565]
[1758914447484,0.3365,4038.0,4037.9,0.02476565]
[1758914447682,4.0854,4038.0,4037.9,0.02476565]
[1758914448086,0.7505,4037.7,4037.6,0.44545]
[1758914448293,0.8776,4037.5,4037.4,0.44546]
[1758914448483,0.87998367,4037.5,4037.4,0.44786238]
[1758914448784,1.32544367,4037.5,4037.4,0.00240238]
[1758914448986,4.53324367,4037.5,4037.4,0.00240238]
[1758914449189,4.08778367,4037.5,4037.4,0.00240238]
[1758914449386,4.08778367,4037.5,4037.4,0.20850238]
[1758914449692,3.74698367,4037.5,4037.4,0.75380238]
[1758914449985,0.00238367,4037.5,4037.4,6.00680238]
[1758914450381,0.32978367,4037.5,4037.4,0.75380238]
[1758914450579,0.66628367,4037.5,4037.4,1.12527238]
[1758914450777,0.66628367,4037.5,4037.4,0.67980238]
[1758914450984,0.87998367,4037.5,4037.4,0.67980238]
[1758914451481,0.87998367,4037.5,4037.4,0.42680238]
[1758914451892,0.87998367,4037.5,4037.4,0.00240238]
[1758914454385,0.00238367,4037.5,4037.4,0.75380238]
[1758914454991,0.00238367,4037.5,4037.4,1.19927238]
[1758914458788,0.00238367,4037.5,4037.4,6.19927238]
[1758914459189,0.00238367,4037.5,4037.4,6.45227238]
[1758914464994,0.87998367,4037.5,4037.4,0.90697238]
[1758914465399,0.87998367,4037.5,4037.4,1.12527238]
[1758914466904,0.87998367,4037.5,4037.4,0.87227238]
[1758914467803,0.87998367,4037.5,4037.4,0.44787238]
[1758914468696,2.30065864,4037.5,4037.4,0.44787238]
[1758914469701,7.30065864,4037.5,4037.4,0.00240238]
[1758914470098,0.87998367,4037.5,4037.4,0.66407238]
[1758914470500,0.87998367,4037.5,4037.4,0.87627238]
[1758914471195,0.87998367,4037.5,4037.4,1.20677238]
[1758914471402,0.87998367,4037.5,4037.4,0.87627238]
[1758914472197,0.87998367,4037.5,4037.4,0.66407238]
[1758914472401,0.87998367,4037.5,4037.4,0.44787238]
[1758914472703,0.7575,4037.4,4037.3,0.44548]
[1758914472895,0.7575,4037.4,4036.7,1.11388]
[1758914472896,0.1331,4037.0,4036.7,1.11388]
[1758914473102,0.7575,4036.8,4036.7,0.65875]
[1758914473402,0.7575,4036.8,4036.7,1.13515]
[1758914473706,0.7575,4036.8,4036.7,0.91413997]
[1758914473896,0.7575,4036.8,4036.7,0.66113997]
[1758914474099,0.7575,4036.8,4036.7,0.91413997]
[1758914475397,0.7575,4036.8,4036.7,0.44793997]
[1758914476110,0.7575,4036.8,4036.7,0.00238997]
[1758914476603,0.44557,4036.6,4035.6,4.32199]
[1758914476807,0.5466,4035.8,4035.7,1.46456]
[1758914477305,0.5466,4035.8,4035.7,1.21156]